fUST/lending_fUST_20260107
["ID","MTS","AMOUNT","RATE_DAILY","PERIOD"]
[400716544,1767790240327,-2956.20937794,0.00021222,5]
[400716546,1767790240339,-3343.1202222,0.00021434,5]
[400716548,1767790240349,-720.0,0.00021474,10]
[400716550,1767790240358,-182.25330539,0.000215,2]
[400716552,1767790240367,-1038.80075693,0.000215,2]
[400716554,1767790240378,-12849.42882741,0.000215,2]
[400716556,1767790240388,-1041.66666667,0.00021626,2]
[400716558,1767790240398,-2061.12063446,0.00021816,2]
[400716560,1767790240412,-7197.77059837,0.000219,2]
[400716562,1767790240421,-150.0,0.00021918,2]
[400716565,1767790240430,-568.10876052,0.0002196,10]
[400716566,1767790240440,-33706.85557229,0.00022,2]
[400716569,1767790240449,-90000.0,0.00022,2]
[400716570,1767790240458,-171.84386487,0.00022,10]
[400716572,1767790240468,-94723.72893292,0.00022,7]
[400716575,1767790240477,-828.88420571,0.00022,20]
[400716577,1767790240486,-1828.89,0.00022,7]
[400716579,1767790240496,-371.29,0.000221,2]
[400716581,1767790240506,-167.05,0.000221,7]
[400716583,1767790240516,-1694.94,0.000221,14]
[400716585,1767790240525,-282.0,0.00022189,2]
[400716587,1767790240535,-12535.30772426,0.0002231,3]
[400716589,1767790240544,-4039.63931688,0.00022344,5]
[400716591,1767790240554,-6644.81962926,0.00022344,5]
[400716593,1767790240564,-396.9069917,0.00022452,2]
[400716595,1767790240574,-300.0,0.00022466,2]
[400716597,1767790240583,-1032.71087693,0.000225,2]
[400716599,1767790240592,-250.0,0.00022601,2]
[400716601,1767790240601,-500.0,0.00022601,2]
[400716603,1767790240612,-250.0,0.00022601,2]
[400716605,1767790240622,-250.0,0.00022601,2]
[400716607,1767790240632,-500.0,0.00022601,2]
[400716609,1767790240641,-30000.0,0.00022601,2]
[400716611,1767790240651,-250.0,0.00022601,2]
[400716613,1767790240660,-252.94566259,0.00022601,2]
[400716615,1767790240669,-500.0,0.00022601,2]
[400716617,1767790240678,-250.0,0.00022601,2]
[400716619,1767790240687,-500.0,0.00022601,2]
[400716621,1767790240696,-250.0,0.00022601,2]
[400716623,1767790240706,-500.0,0.00022601,2]
[400716625,1767790240715,-250.0,0.00022601,2]
[400716627,1767790240724,-500.0,0.00022601,2]
[400716629,1767790240734,-250.83955872,0.00022601,2]
[400716631,1767790240744,-151.0,0.00022601,2]
[400716633,1767790240753,-500.0,0.00022601,2]
[400716635,1767790240762,-1500.0,0.00022601,2]
[400716637,1767790240771,-364.53594477,0.00022601,2]
[400716639,1767790240780,-1500.0,0.00022601,2]
[400716641,1767790240789,-1500.0,0.00022601,2]
[400716643,1767790240798,-1500.0,0.00022601,2]
[400716645,1767790240807,-1500.0,0.00022601,2]
[400716647,1767790240817,-1500.0,0.00022601,2]
[400716649,1767790240826,-160.0,0.00022601,2]
[400716651,1767790240835,-1500.0,0.00022601,2]
[400716653,1767790240844,-250.0,0.00022601,2]
[400716655,1767790240854,-160.0,0.00022601,2]
[400716657,1767790240864,-1500.0,0.00022601,2]
[400716659,1767790240873,-250.0,0.00022601,2]
[400716661,1767790240883,-160.79089558,0.00022601,2]
[400716663,1767790240892,-1500.0,0.00022601,2]
[400716665,1767790240905,-250.0,0.00022601,2]
[400716667,1767790240915,-1500.0,0.00022601,2]
[400716669,1767790240924,-250.0,0.00022601,2]
[400716671,1767790240934,-250.0,0.00022601,2]
[400716673,1767790240944,-1500.0,0.00022601,2]
[400716675,1767790240952,-1500.0,0.00022601,2]
[400716677,1767790240962,-250.0,0.00022601,2]
[400716679,1767790240972,-302.29046048,0.00022601,2]
[400716681,1767790240981,-1500.0,0.00022601,2]
[400716683,1767790240990,-1500.0,0.00022601,2]
[400716685,1767790241000,-2487.15318209,0.00022601,2]
[400716687,1767790241011,-514.84070869,0.00022601,2]
[400716689,1767790241020,-151.0,0.00022601,2]
[400716691,1767790241030,-151.0,0.00022601,2]
[400716693,1767790241039,-157.242965,0.00022601,2]
[400716695,1767790241048,-168.44,0.000228,7]
[400716697,1767790241058,-1041.66666667,0.00023,3]
[400716699,1767790241067,-450.0,0.00023014,2]
[400716701,1767790241076,-48514.409324,0.00023054,2]
[400716703,1767790241086,-187.0,0.00023068,9]
[400716705,1767790241095,-3662.6327141,0.00023147,2]
[400716707,1767790241105,-151.0,0.00023149,2]
[400716709,1767790241115,-151.0,0.00023149,2]
[400716711,1767790241124,-151.0,0.00023149,2]
[400716713,1767790241133,-151.0,0.00023149,2]
[400716715,1767790241142,-151.0,0.00023149,2]
[400716717,1767790241152,-1800.0,0.00023149,2]
[400716719,1767790241161,-31110.0,0.00023149,2]
[400716721,1767790241170,-2579.17784983,0.00023149,2]
[400716723,1767790241179,-533.88981491,0.00023149,2]
[400716725,1767790241187,-23367.19,0.000232,2]
[400716727,1767790241197,-247.352857,0.000232,2]
[400716729,1767790241206,-247.352857,0.000232,2]
[400716731,1767790241215,-247.352857,0.000232,2]
[400716733,1767790241224,-247.352857,0.000232,2]
[400716735,1767790241234,-634.815792,0.000232,2]
[400716737,1767790241243,-634.815792,0.000232,2]
[400716738,1767790241251,-634.815792,0.000232,2]
[400716740,1767790241260,-634.815792,0.000232,2]
[400716743,1767790241270,-151.0,0.000232,2]
[400716745,1767790241279,-2061.12063446,0.00023255,2]
[400716747,1767790241289,-1800.0,0.00023425,2]
[400716749,1767790241299,-1800.0,0.0002346,2]
[400716750,1767790241308,-1800.0,0.00023481,2]
[400716752,1767790241317,-264.30725743,0.0002356,2]
[400716755,1767790241327,-251.56945719,0.0002356,2]
[400716757,1767790241340,-600.0,0.00023562,2]
[400716759,1767790241350,-7197.7705983,0.00023593,2]
[400716760,1767790241359,-864.0,0.00023621,10]
[400716763,1767790241371,-500.0,0.00023654,2]
[400716764,1767790241380,-32261.07,0.00023697,2]
[400716766,1767790241389,-2674.60743027,0.00023697,2]
[400716769,1767790241399,-553.64373807,0.00023697,2]
[400716771,1767790241410,-251.56945719,0.00023702,9]
[400716773,1767790241419,-282.0,0.00023715,2]
[400716775,1767790241428,-1828.89,0.000238,7]
[400716777,1767790241437,-176.06015534,0.0002381,2]
[400716779,1767790241446,-264.30725743,0.00023843,17]
[400716781,1767790241455,-251.56945719,0.00023843,17]
[400716783,1767790241465,-1800.0,0.00023898,2]
[400716785,1767790241474,-1694.94,0.000239,14]
[400716787,1767790241483,-12535.25,0.000239,3]
[400716789,1767790241493,-251.56945719,0.00023985,25]
[400716791,1767790241503,-23906.54289923,0.00024,2]
[400716793,1767790241512,-245.28508092,0.00024,60]
[400716795,1767790241521,-1734.693215,0.00024,2]
[400716797,1767790241531,-465.43647205,0.00024,2]
[400716799,1767790241540,-618.86,0.00024,14]
[400716801,1767790241549,-167.05,0.00024,7]
[400716803,1767790241558,-1041.66666667,0.00024,7]
[400716804,1767790241567,-750.0,0.0002411,2]
[400716806,1767790241576,-264.30725743,0.00024127,32]
[400716808,1767790241585,-251.56945719,0.00024127,32]
[400716810,1767790241595,-390815.96991821,0.00024142,2]
[400716838,1767790241844,-352.8926,0.00019178,3]
[400716840,1767790241854,-677.46870999,0.00024142,2]
[400716842,1767790241865,-6414.10338796,0.00024142,2]
[400716925,1767790246611,-352.8926,0.00019178,5]
[400716926,1767790246620,-2683.0174,0.00024142,2]
[400716964,1767790413045,347.27955443,0.00030119,120]
[400716965,1767790414468,463.0394059,0.00030119,120]
[400716966,1767790415846,347.27955443,0.00030119,120]
[400716967,1767790431335,204.28209084,0.00030119,120]
[400716968,1767790432808,272.37612112,0.00030119,120]
[400716969,1767790433965,204.28209084,0.00030119,120]
[400716970,1767790438850,333.66074837,0.00030119,120]
[400717089,1767791090611,1453.0,0.0003,120]
[400717185,1767791431797,-500.0,0.00013273,2]
[400717187,1767791431807,-300.0,0.00013698,2]
[400717189,1767791431817,-556.5,0.00013699,2]
[400717191,1767791431826,-500.0,0.00013699,2]
[400717193,1767791431836,-500.0,0.00013699,2]
[400717195,1767791431845,-500.0,0.00013699,2]
[400717197,1767791431855,-1000.0,0.00013821,2]
[400717199,1767791431865,-1000.0,0.00014247,2]
[400717201,1767791431874,-1000.0,0.00014247,2]
[400717203,1767791431887,-1000.0,0.00014247,2]
[400717205,1767791431896,-1500.0,0.00014368,2]
[400717207,1767791431905,-1500.0,0.00014795,2]
[400717208,1767791431915,-1500.0,0.00014795,2]
[400717210,1767791431924,-1500.0,0.00014795,2]
[400717212,1767791431934,-2000.0,0.00014916,2]
[400717214,1767791431943,-3623.73069022,0.00015,2]
[400717225,1767791437884,-187.67433755,0.00013273,2]
[400717226,1767791437897,-1546.0473806,0.00015,2]
[400717227,1767791437943,-28537.07750147,0.00015,2]
[400717228,1767791437953,-420.0,0.00015011,2]
[400717229,1767791437963,-178.58402,0.00015068,2]
[400717230,1767791437973,-800.0,0.00015068,2]
[400717231,1767791437983,-221.45571831,0.00015273,2]
[400717232,1767791437993,-2000.0,0.00015342,2]
[400717233,1767791438005,-2000.0,0.00015342,2]
[400717234,1767791438015,-2000.0,0.00015342,2]
[400717235,1767791438024,-2500.0,0.00015464,2]
[400717236,1767791438034,-6614.42648076,0.0001579,2]
[400717237,1767791438043,-2500.0,0.0001589,2]
[400717238,1767791438052,-2500.0,0.0001589,2]
[400717239,1767791438062,-2500.0,0.0001589,2]
[400717240,1767791438071,-150.0,0.00016,2]
[400717241,1767791438081,-3000.0,0.00016012,2]
[400717242,1767791438091,-1600.0,0.00016164,2]
[400717243,1767791438101,-587.0,0.00016451,2]
[400717244,1767791438111,-3331.75246461,0.0001656,2]
[400717245,1767791438121,-802.30074464,0.0001726,2]
[400717246,1767791438132,-255.23709907,0.00017273,2]
[400717247,1767791438142,-432.0,0.00018028,2]
[400717248,1767791438153,-6614.42648075,0.00018249,2]
[400717249,1767791438164,-456.92,0.00018393,2]
[400717250,1767791438174,-178.58402,0.00018493,2]
[400717251,1767791438183,-500.0,0.00018508,2]
[400717252,1767791438193,-151.52117963,0.00018508,2]
[400717253,1767791438202,-150.0,0.00018508,2]
[400717254,1767791438212,-150.0,0.00018508,2]
[400717255,1767791438221,-150.0,0.00018508,2]
[400717256,1767791438231,-150.0,0.00018508,2]
[400717257,1767791438240,-150.0,0.00018508,2]
[400717258,1767791438251,-500.0,0.00018508,2]
[400717259,1767791438261,-150.0,0.00018508,2]
[400717260,1767791438271,-176.1819283,0.00018508,2]
[400717261,1767791438281,-500.0,0.0001851,2]
[400717262,1767791438291,-150.0,0.0001851,2]
[400717263,1767791438301,-150.75126271,0.0001851,2]
[400717264,1767791438311,-500.0,0.00018645,2]
[400717265,1767791438321,-150.0,0.00018645,2]
[400717266,1767791438330,-150.0,0.00018645,2]
[400717267,1767791438340,-261.5353383,0.00018645,2]
[400717268,1767791438350,-151.56017143,0.00018645,2]
[400717269,1767791438360,-229.44903306,0.00018645,2]
[400717270,1767791438369,-150.0,0.00018645,2]
[400717271,1767791438379,-500.0,0.00018645,2]
[400717272,1767791438389,-500.0,0.00018647,2]
[400717273,1767791438399,-150.0,0.00018647,2]
[400717274,1767791438410,-505.98,0.00018777,3]
[400717275,1767791438423,-252.99,0.00018777,3]
[400717276,1767791438433,-759.0,0.00018777,3]
[400717277,1767791438444,-651.61161568,0.0001878,2]
[400717278,1767791438453,-500.0,0.0001878,2]
[400717279,1767791438463,-500.0,0.0001878,2]
[400717280,1767791438473,-500.0,0.0001878,2]
[400717281,1767791438482,-500.0,0.0001878,2]
[400717282,1767791438493,-500.0,0.0001878,2]
[400717283,1767791438503,-500.0,0.0001878,2]
[400717284,1767791438512,-500.0,0.0001878,2]
[400717285,1767791438521,-500.0,0.0001878,2]
[400717286,1767791438530,-500.0,0.0001878,2]
[400717287,1767791438540,-500.0,0.0001878,2]
[400717288,1767791438549,-500.0,0.0001878,2]
[400717289,1767791438558,-500.0,0.0001878,2]
[400717290,1767791438568,-500.0,0.0001878,2]
[400717291,1767791438577,-500.0,0.0001878,2]
[400717292,1767791438586,-500.0,0.0001878,2]
[400717293,1767791438596,-500.0,0.0001878,2]
[400717294,1767791438606,-500.0,0.0001878,2]
[400717295,1767791438616,-500.0,0.0001878,2]
[400717296,1767791438627,-500.0,0.0001878,2]
[400717297,1767791438637,-500.0,0.0001878,2]
[400717298,1767791438646,-500.0,0.0001878,2]
[400717299,1767791438657,-500.0,0.0001878,2]
[400717300,1767791438667,-500.0,0.0001878,2]
[400717301,1767791438676,-500.0,0.0001878,2]
[400717302,1767791438686,-500.0,0.0001878,2]
[400717303,1767791438695,-500.0,0.0001878,2]
[400717304,1767791438705,-500.0,0.0001878,2]
[400717305,1767791438714,-500.0,0.0001878,2]
[400717306,1767791438724,-500.0,0.0001878,2]
[400717307,1767791438733,-500.0,0.0001878,2]
[400717308,1767791438742,-500.0,0.0001878,2]
[400717309,1767791438751,-500.0,0.0001878,2]
[400717310,1767791438761,-500.0,0.0001878,2]
[400717311,1767791438770,-500.0,0.0001878,2]
[400717312,1767791438779,-500.0,0.0001878,2]
[400717313,1767791438789,-500.0,0.0001878,2]
[400717314,1767791438800,-500.0,0.0001878,2]
[400717315,1767791438810,-500.0,0.0001878,2]
[400717316,1767791438819,-500.0,0.0001878,2]
[400717317,1767791438829,-500.0,0.0001878,2]
[400717318,1767791438839,-500.0,0.0001878,2]
[400717319,1767791438849,-500.0,0.0001878,2]
[400717320,1767791438859,-500.0,0.0001878,2]
[400717321,1767791438868,-500.0,0.0001878,2]
[400717322,1767791438878,-500.0,0.0001878,2]
[400717323,1767791438891,-500.0,0.0001878,2]
[400717324,1767791438901,-500.0,0.0001878,2]
[400717325,1767791438912,-500.0,0.0001878,2]
[400717326,1767791438923,-500.0,0.0001878,2]
[400717327,1767791438934,-500.0,0.0001878,2]
[400717328,1767791438944,-500.0,0.0001878,2]
[400717329,1767791438955,-454.65766097,0.0001878,2]
[400717330,1767791438967,-500.0,0.0001878,2]
[400717331,1767791438977,-500.0,0.0001878,2]
[400717332,1767791438987,-271.96277784,0.0001878,2]
[400717333,1767791438996,-500.0,0.0001878,2]
[400717334,1767791439006,-500.0,0.0001878,2]
[400717335,1767791439016,-500.0,0.0001878,2]
[400717336,1767791439026,-500.0,0.0001878,2]
[400717337,1767791439036,-500.0,0.0001878,2]
[400717338,1767791439045,-500.0,0.0001878,2]
[400717339,1767791439055,-500.0,0.0001878,2]
[400717340,1767791439065,-500.0,0.0001878,2]
[400717341,1767791439074,-500.0,0.0001878,2]
[400717342,1767791439083,-393.006084,0.0001878,2]
[400717343,1767791439093,-500.0,0.0001878,2]
[400717344,1767791439103,-500.0,0.0001878,2]
[400717345,1767791439112,-500.0,0.0001878,2]
[400717346,1767791439122,-500.0,0.0001878,2]
[400717347,1767791439131,-500.0,0.0001878,2]
[400717348,1767791439141,-500.0,0.0001878,2]
[400717349,1767791439151,-500.0,0.0001878,2]
[400717350,1767791439161,-500.0,0.0001878,2]
[400717351,1767791439171,-500.0,0.0001878,2]
[400717352,1767791439182,-500.0,0.0001878,2]
[400717353,1767791439192,-500.0,0.0001878,2]
[400717354,1767791439201,-28.26495173,0.0001878,2]
[400717355,1767791439215,-471.73504827,0.0001878,2]
[400717356,1767791439224,-500.0,0.0001878,2]
[400717358,1767791439234,-500.0,0.0001878,2]
[400717360,1767791439245,-500.0,0.0001878,2]
[400717362,1767791439255,-500.0,0.0001878,2]
[400717364,1767791439265,-500.0,0.0001878,2]
[400717366,1767791439275,-475.06772698,0.0001878,2]
[400717368,1767791439287,-24.93227302,0.0001878,2]
[400717370,1767791439296,-595.12568369,0.00018782,2]
[400717372,1767791439306,-150.0,0.00018782,2]
[400717374,1767791439315,-152.02997996,0.00018782,2]
[400717376,1767791439325,-500.0,0.00018782,2]
[400717378,1767791439335,-150.0,0.00018782,2]
[400717380,1767791439344,-500.0,0.00018784,2]
[400717382,1767791439354,-259.14783661,0.00018784,2]
[400717384,1767791439364,-500.0,0.00018786,2]
[400717386,1767791439374,-493.60316166,0.00018786,2]
[400717389,1767791439385,-226.1615881,0.00018786,2]
[400717393,1767791439395,-233.20139388,0.00018786,2]
[400717396,1767791439407,-500.0,0.00018786,2]
[400717399,1767791439416,-719.76474976,0.00018786,2]
[400717401,1767791439426,-719.76474976,0.00018786,2]
[400717403,1767791439435,-354.48738583,0.00018786,2]
[400717405,1767791439444,-719.76474976,0.00018786,2]
[400717407,1767791439453,-719.76474976,0.00018786,2]
[400717408,1767791439463,-719.76474976,0.00018786,2]
[400717409,1767791439472,-719.76474976,0.00018786,2]
[400717410,1767791439481,-719.76474976,0.00018786,2]
[400717411,1767791439491,-719.76474976,0.00018786,2]
[400717412,1767791439500,-719.76474976,0.00018786,2]
[400717413,1767791439509,-719.76474976,0.00018786,2]
[400717414,1767791439519,-719.76474976,0.00018786,2]
[400717415,1767791439528,-719.76474976,0.00018786,2]
[400717416,1767791439537,-719.76474976,0.00018786,2]
[400717417,1767791439547,-719.76474976,0.00018786,2]
[400717418,1767791439555,-1000000.0,0.00018787,2]
[400717419,1767791439564,-150.0,0.00018919,2]
[400717420,1767791439574,-266.491439,0.00018919,2]
[400717421,1767791439583,-314.3735124,0.00018921,2]
[400717422,1767791439593,-1648.8965076,0.00019052,2]
[400717424,1767791439602,-153.50612113,0.00019056,2]
[400717426,1767791439612,-600.0,0.00019152,2]
[400717427,1767791439621,-181.73,0.00019178,2]
[400717429,1767791439631,-168.44,0.000192,2]
[400717431,1767791439640,-23367.19,0.000192,2]
[400717432,1767791439651,-167.76,0.000192,2]
[400717433,1767791439661,-167.05,0.000192,2]
[400717434,1767791439670,-1694.94,0.000192,2]
[400717435,1767791439679,-289.01847982,0.00019273,2]
[400717436,1767791439688,-301464.637223,0.00019366,2]
[400717437,1767791439698,-150.0,0.00019414,2]
[400717438,1767791439707,-300.0,0.00019414,2]
[400717439,1767791439717,-450.0,0.00019414,2]
[400717440,1767791439726,-600.0,0.00019414,2]
[400717441,1767791439735,-750.0,0.00019414,2]
[400717442,1767791439744,-834.7546739,0.00019414,2]
[400717443,1767791439754,-1972.0,0.0002,2]
[400717444,1767791439764,-181.25348447,0.0002,2]
[400717445,1767791439773,-1011.96,0.00020147,3]
[400717446,1767791439783,-505.98,0.00020147,3]
[400717447,1767791439791,-1041.66666667,0.00020319,2]
[400717448,1767791439800,-271.0,0.00020356,3]
[400717449,1767791439809,-1648.89650756,0.00020489,2]
[400717450,1767791439818,-282.0,0.00020633,2]
[400717451,1767791439827,-6614.42648075,0.00020707,2]
[400717452,1767791439836,-160.0,0.00020965,2]
[400717453,1767791439845,-160.0,0.00020965,2]
[400717454,1767791439855,-160.79089558,0.00020965,2]
[400717455,1767791439864,-250.0,0.00020965,2]
[400717456,1767791439874,-250.0,0.00020965,2]
[400717457,1767791439883,-250.0,0.00020965,2]
[400717458,1767791439895,-1500.0,0.00020965,2]
[400717459,1767791439905,-250.0,0.00020965,2]
[400717460,1767791439914,-2579.17784983,0.00020965,2]
[400717461,1767791439924,-1500.0,0.00020965,2]
[400717462,1767791439932,-500.0,0.00020965,2]
[400717463,1767791439941,-250.0,0.00020965,2]
[400717464,1767791439951,-250.0,0.00020965,2]
[400717465,1767791439962,-250.0,0.00020965,2]
[400717466,1767791439971,-1500.0,0.00020965,2]
[400717467,1767791439980,-500.0,0.00020965,2]
[400717468,1767791439989,-302.29046048,0.00020965,2]
[400717469,1767791439998,-250.0,0.00020965,2]
[400717470,1767791440007,-252.94566259,0.00020965,2]
[400717471,1767791440016,-1500.0,0.00020965,2]
[400717472,1767791440026,-500.0,0.00020965,2]
[400717473,1767791440035,-250.0,0.00020965,2]
[400717474,1767791440044,-500.0,0.00020965,2]
[400717475,1767791440053,-1500.0,0.00020965,2]
[400717476,1767791440063,-250.0,0.00020965,2]
[400717477,1767791440072,-500.0,0.00020965,2]
[400717478,1767791440081,-1500.0,0.00020965,2]
[400717479,1767791440090,-250.83955872,0.00020965,2]
[400717480,1767791440099,-500.0,0.00020965,2]
[400717481,1767791440109,-1500.0,0.00020965,2]
[400717482,1767791440118,-364.53594477,0.00020965,2]
[400717483,1767791440128,-1500.0,0.00020965,2]
[400717484,1767791440137,-1500.0,0.00020965,2]
[400717485,1767791440146,-1500.0,0.00020965,2]
[400717486,1767791440155,-1500.0,0.00020965,2]
[400717487,1767791440164,-151.0,0.00020965,2]
[400717488,1767791440174,-1500.0,0.00020965,2]
[400717489,1767791440183,-157.242965,0.00020965,2]
[400717490,1767791440203,-1500.0,0.00020965,2]
[400717491,1767791440213,-533.88981491,0.00020965,2]
[400717492,1767791440224,-30000.0,0.00020965,2]
[400717493,1767791440235,-720.0,0.00021067,2]
[400717494,1767791440247,-322.79986058,0.00021273,2]
[400717495,1767791440257,-2674.60743027,0.00021513,2]
[400717496,1767791440267,-553.64373807,0.00021513,2]
[400717497,1767791440276,-31110.0,0.00021513,2]
[400717498,1767791440286,-4377.98797824,0.00021823,5]
[400717499,1767791440296,-2684.07772698,0.00021823,5]
[400717500,1767791440305,-178.58402,0.00021918,2]
[400717501,1767791440315,-150.0,0.00021918,2]
[400717502,1767791440324,-1648.89650756,0.00021926,2]
[400717503,1767791440333,-1090.73702388,0.00022,2]
[400717504,1767791440343,-1646.0,0.00022,7]
[400717505,1767791440352,-2773.56790519,0.00022061,2]
[400717506,1767791440362,-574.12855637,0.00022061,2]
[400717507,1767791440372,-32261.07,0.00022061,2]
[400717508,1767791440381,-282.0,0.00022162,2]
[400717509,1767791440391,-150.0,0.00022169,2]
[400717510,1767791440400,-150.0,0.00022169,2]
[400717511,1767791440410,-150.0,0.00022169,2]
[400717512,1767791440419,-500.0,0.00022169,2]
[400717513,1767791440428,-206.58822789,0.00022169,2]
[400717514,1767791440438,-150.0,0.00022169,2]
[400717515,1767791440448,-500.0,0.00022169,2]
[400717516,1767791440458,-500.0,0.00022169,2]
[400717517,1767791440467,-500.0,0.00022169,2]
[400717518,1767791440476,-150.0,0.00022169,2]
[400717519,1767791440485,-150.0,0.00022169,2]
[400717520,1767791440494,-150.0,0.00022169,2]
[400717521,1767791440504,-150.0,0.00022169,2]
[400717522,1767791440514,-150.0,0.00022169,2]
[400717523,1767791440523,-157.018213,0.00022176,5]
[400717524,1767791440533,-2443.72890959,0.00022213,2]
[400717525,1767791440542,-150.0,0.00022306,2]
[400717526,1767791440552,-150.0,0.00022306,2]
[400717528,1767791440562,-261.88445837,0.00022306,2]
[400717530,1767791440571,-500.0,0.00022306,2]
[400717531,1767791440580,-150.0,0.00022306,2]
[400717532,1767791440590,-500.0,0.00022306,2]
[400717534,1767791440599,-500.0,0.00022306,2]
[400717536,1767791440609,-603.89498635,0.00022306,2]
[400717538,1767791440618,-209.63078805,0.00022306,2]
[400717540,1767791440627,-150.0,0.00022306,2]
[400717542,1767791440636,-150.0,0.00022306,2]
[400717544,1767791440645,-150.0,0.00022306,2]
[400717547,1767791440655,-210.83487892,0.00022306,2]
[400717549,1767791440666,-7197.77059837,0.00022343,2]
[400717551,1767791440675,-168.44,0.000224,7]
[400717552,1767791440684,-23367.19,0.000224,2]
[400717555,1767791440694,-167.05,0.000224,7]
[400717557,1767791440703,-1694.94,0.000224,14]
[400717558,1767791440712,-150.0,0.00022443,2]
[400717561,1767791440722,-500.0,0.00022443,2]
[400717563,1767791440731,-150.0,0.00022443,2]
[400717565,1767791440740,-500.0,0.00022443,2]
[400717567,1767791440750,-500.0,0.00022443,2]
[400717569,1767791440759,-150.0,0.00022443,2]
[400717570,1767791440768,-150.0,0.00022443,2]
[400717573,1767791440777,-150.0,0.00022443,2]
[400717575,1767791440787,-300.0,0.00022466,2]
[400717577,1767791440796,-500.0,0.0002258,2]
[400717579,1767791440805,-150.0,0.0002258,2]
[400717581,1767791440814,-500.0,0.0002258,2]
[400717583,1767791440823,-500.0,0.0002258,2]
[400717585,1767791440832,-160.56827625,0.0002258,2]
[400717587,1767791440841,-150.0,0.0002258,2]
[400717589,1767791440850,-177.57781539,0.0002258,2]
[400717591,1767791440859,-151.0,0.0002258,2]
[400717593,1767791440869,-614.68670068,0.00022601,2]
[400717595,1767791440879,-2456.28805593,0.00022601,2]
[400717597,1767791440892,-665.18121362,0.00022601,2]
[400717599,1767791440902,-2660.7248545,0.00022601,2]
[400717601,1767791440913,-5986.63092262,0.00022601,2]
[400717603,1767791440922,-1141.87490888,0.00022601,2]
[400717605,1767791440933,-4567.49963551,0.00022601,2]
[400717607,1767791440943,-2876.18991768,0.00022609,2]
[400717609,1767791440954,-595.37131296,0.00022609,2]
[400717611,1767791440963,-33454.72959,0.00022609,2]
[400717613,1767791440973,-276.176938,0.00022609,2]
[400717615,1767791440982,-151.0,0.00022609,2]
[400717617,1767791440991,-247.352857,0.00022609,2]
[400717619,1767791441001,-151.0,0.00022609,2]
[400717621,1767791441011,-247.352857,0.00022609,2]
[400717623,1767791441020,-247.352857,0.00022609,2]
[400717625,1767791441029,-247.352857,0.00022609,2]
[400717627,1767791441042,-634.815792,0.00022609,2]
[400717629,1767791441052,-634.815792,0.00022609,2]
[400717631,1767791441061,-634.815792,0.00022609,2]
[400717632,1767791441071,-634.815792,0.00022609,2]
[400717633,1767791441080,-2443.72890959,0.00022609,2]
[400717634,1767791441090,-500.0,0.00022717,2]
[400717635,1767791441099,-206.74458148,0.00022717,2]
[400717636,1767791441109,-500.0,0.00022717,2]
[400717637,1767791441118,-500.0,0.00022717,2]
[400717638,1767791441128,-156.27075541,0.00022717,2]
[400717639,1767791441138,-2443.72890959,0.00022777,2]
[400717640,1767791441148,-500.0,0.00022854,2]
[400717641,1767791441159,-621.60339535,0.00022854,2]
[400717642,1767791441168,-500.0,0.00022854,2]
[400717643,1767791441178,-181.80617065,0.00022873,7]
[400717644,1767791441187,-500.0,0.00022991,2]
[400717645,1767791441197,-500.0,0.00022991,2]